bitfinex/quotes_ETHUSD_20240715
["timestamp","ask_amount","ask_price","bid_price","bid_amount"]
[1721083024494,0.55,3466.3,3465.9,2.88524]
[1721083024697,0.55,3466.3,3465.4,3.0]
[1721083024698,0.30007427,3466.4,3466.0,2.88516]
[1721083024863,0.30007427,3466.4,3466.2,2.88498]
[1721083025481,0.30007427,3466.4,3466.3,5.76984]
[1721083025693,0.6018942,3466.4,3466.3,5.76984]
[1721083029971,0.6018942,3466.4,3466.3,11.65476]
[1721083030276,0.6018942,3466.4,3466.3,8.76984]
[1721083032378,0.6018942,3466.4,3466.3,5.88492]
[1721083032901,0.6018942,3466.4,3466.3,9.646831]
[1721083033085,0.6018942,3466.4,3466.3,12.531751]
[1721083034139,2.424,3468.2,3467.8,2.88364]
[1721083034405,2.424,3468.9,3468.0,2.88343]
[1721083034579,2.424,3468.9,3468.1,0.05765889]
[1721083034763,0.1196838,3469.6,3467.6,2.693]
[1721083034963,0.1196838,3469.6,3468.1,2.88336]
[1721083034964,0.60191338,3468.8,3468.1,2.88336]
[1721083035211,5.92156,3469.2,3468.1,2.88336]
[1721083035398,0.30167892,3468.7,3468.2,2.88329]
[1721083035571,0.30167892,3468.7,3468.5,2.88306]
[1721083035572,0.60192558,3468.7,3468.5,2.88306]
[1721083035922,0.3016734,3468.6,3468.2,2.88332]
[1721083036080,0.3016734,3468.6,3467.4,3.0]
[1721083036081,0.34798272,3468.6,3467.9,2.88353]
[1721083036409,0.34798272,3468.6,3468.5,2.88309]
[1721083036564,0.34798272,3468.6,3468.1,2.88341]
[1721083036768,0.34798272,3468.6,3468.5,5.76618]
[1721083037190,0.30023276,3468.7,3468.6,5.766]
[1721083037814,0.60187474,3468.7,3468.6,5.766]
[1721083038109,0.60187474,3468.7,3468.6,2.883]
[1721083039415,1.15187474,3468.7,3468.6,2.883]
[1721083040133,3.45117474,3468.7,3468.2,2.88332]
[1721083040337,3.45117474,3468.7,3467.9,2.88357]
[1721083040338,0.89511747,3468.6,3467.9,2.88357]
[1721083040499,0.94011019,3468.6,3467.8,2.88366]
[1721083040704,0.94011019,3468.6,3466.7,2.4331]
[1721083040705,0.94011019,3468.6,3467.9,2.88357]
[1721083040899,0.04499272,3468.6,3468.5,5.76618]
[1721083041437,0.60187474,3468.7,3468.6,5.766]
[1721083041585,0.60187474,3468.7,3468.6,2.883]
[1721083042944,0.60187474,3468.7,3468.6,5.766]
[1721083043611,1.15187474,3468.7,3468.6,5.766]
[1721083043813,1.15187474,3468.7,3468.6,2.883]
[1721083044724,1.15187474,3468.7,3468.5,2.88306]
[1721083044924,0.55,3468.6,3467.0,2.4331]
[1721083045136,0.40249747,3468.5,3467.7,2.88373]
[1721083045464,0.40249747,3468.5,3467.9,2.88358]
[1721083045465,0.55,3468.4,3467.9,2.88358]
[1721083045631,0.55,3468.4,3467.7,2.88373]
[1721083045632,0.04492206,3468.3,3467.7,2.88373]
[1721083045832,0.04492206,3468.3,3468.0,2.88349]
[1721083046244,0.04492206,3468.3,3467.5,2.88391]
[1721083046406,0.30060092,3468.2,3467.2,3.0]
[1721083046606,0.30060092,3468.2,3468.0,2.88345]
[1721083046810,0.59479598,3468.1,3468.0,2.88345]
[1721083047058,0.59479598,3468.1,3467.6,2.88381]
[1721083047361,0.55,3468.1,3468.0,2.8835]
[1721083047568,0.30060092,3468.2,3468.1,2.88342]
[1721083048242,0.30060092,3468.2,3468.1,5.76684]
[1721083048447,2.62474198,3468.7,3468.6,8.649]
[1721083048448,0.30164198,3468.7,3468.6,8.649]
[1721083048661,0.30164198,3468.7,3468.6,15.118]
[1721083048863,0.30164198,3468.7,3468.6,18.52536621]
[1721083049511,0.30164198,3468.7,3468.6,20.99876621]
[1721083049713,0.30164198,3468.7,3468.6,26.26995783]
[1721083049932,0.30055205,3469.1,3469.0,11.53068]
[1721083050140,0.60208815,3469.1,3469.0,14.53068]
[1721083050347,0.3015361,3469.1,3469.0,14.93804621]
[1721083050768,0.3015361,3469.1,3469.0,17.82071621]
[1721083051064,0.3015361,3469.1,3469.0,19.60278783]
[1721083052771,0.3015361,3469.1,3469.0,19.19542162]
[1721083053065,0.1196838,3469.6,3469.5,11.529]
[1721083053232,0.1196838,3469.6,3469.5,19.556148]
[1721083053986,0.1196838,3469.6,3469.5,8.7645]
[1721083054131,0.1196838,3469.6,3469.5,2.88225]
[1721083054328,0.6696838,3469.6,3469.3,2.88242]
[1721083054532,0.55,3469.5,3469.2,2.88249]
[1721083054766,0.55,3469.5,3469.0,2.88264]
[1721083055260,0.55,3469.5,3469.4,2.88234]
[1721083056382,0.55,3469.5,3469.4,5.76468]
[1721083056533,0.55,3469.5,3469.4,2.88234]
[1721083056735,0.55,3469.5,3469.0,2.88263]
[1721083057064,0.55,3469.5,3469.1,2.88254]
[1721083057269,0.55,3469.5,3468.6,7.1001942]
[1721083057438,0.55,3469.5,3468.2,12.37]
[1721083057776,0.55,3469.5,3469.2,2.88248]
[1721083057942,0.55,3469.5,3469.0,2.88262]
[1721083058175,0.55,3469.5,3469.3,2.88236]
[1721083058500,0.55,3469.5,3469.4,2.88234]
[1721083058686,0.55,3469.5,3468.3,2.91736562]
[1721083058687,0.55,3469.5,3469.2,2.88244]
[1721083059061,0.55,3469.5,3469.3,2.88241]
[1721083059658,0.1196838,3469.6,3469.3,0.5765]
[1721083059858,0.1196838,3469.6,3469.5,5.7645]
[1721083060507,0.1196838,3469.6,3469.5,8.64675]
[1721083061371,0.30150967,3470.4,3470.3,2.88159]
[1721083061582,0.30150967,3470.4,3470.3,5.76318]
[1721083064331,0.85150967,3470.4,3470.3,5.76318]
[1721083064794,0.30150967,3470.4,3470.3,6.339498]
[1721083066101,0.85150967,3470.4,3470.3,6.339498]
[1721083066303,0.30150967,3470.4,3470.3,11.627988]
[1721083066504,0.30150967,3470.4,3470.3,17.509578]
[1721083066714,0.4,3471.6,3470.5,8.64426]
[1721083066897,0.30143318,3471.3,3470.5,13.3951668]
[1721083067700,0.30143318,3471.3,3470.5,19.1580068]
[1721083067996,1e-05,3470.6,3470.5,24.9354768]
[1721083068198,0.30143318,3471.3,3471.2,8.64252]
[1721083068405,0.4,3471.6,3471.5,8.64177]
[1721083068592,0.4,3471.6,3471.5,9.505947]
[1721083068996,0.70046494,3471.6,3471.5,9.505947]
[1721083069330,0.70046494,3471.6,3471.5,6.625357]
[1721083069622,0.70046494,3471.6,3471.5,5.76118]
[1721083070124,1.25046494,3471.6,3471.5,5.76118]
[1721083070826,1.25046494,3471.6,3471.5,2.88059]
[1721083071483,1.25046494,3471.6,3470.6,6.46727]
[1721083071684,0.55,3471.5,3470.7,4.12181768]
[1721083071920,0.55,3471.5,3471.1,2.8809]
[1721083072391,0.55,3471.5,3470.5,1.7509068]
[1721083072615,0.55,3471.5,3470.7,2.8812]
[1721083072791,0.55,3471.5,3470.5,2.88141]
[1721083073009,0.0349453,3471.4,3470.8,2.88117]
[1721083073397,0.0349453,3471.4,3470.6,2.88129]
[1721083073589,0.37255102,3471.3,3470.6,2.88129]
[1721083073813,0.55,3471.2,3470.6,2.88129]
[1721083074004,0.58490466,3471.2,3470.7,2.88124]
[1721083074491,0.55,3471.2,3470.8,2.88115]
[1721083074723,0.55,3471.2,3470.8,2.88113]
[1721083075036,3.14056494,3471.6,3470.2,7.1001942]
[1721083075037,0.55,3471.5,3471.1,2.88091]
[1721083075327,0.0349047,3471.4,3471.1,2.88091]
[1721083075644,0.0349047,3471.4,3470.7,2.88125]
[1721083076127,0.0349047,3471.4,3470.6,2.88134]
[1721083076128,0.40745166,3471.4,3470.6,2.88134]
[1721083076327,0.55,3471.3,3470.6,2.88134]
[1721083076491,0.03486406,3471.2,3470.6,2.88134]
[1721083076693,0.55,3471.3,3470.6,2.88134]
[1721083076895,0.03486406,3471.2,3470.9,2.88107]
[1721083077095,0.55,3471.3,3470.6,2.88134]
[1721083077339,0.03486406,3471.2,3470.7,2.88125]
[1721083077542,0.03486406,3471.2,3470.6,2.88131]
[1721083077839,0.95631119,3471.3,3470.6,2.88131]
[1721083078193,0.03486406,3471.2,3470.6,2.83131]
[1721083078627,0.95631119,3471.3,3470.7,2.88122]
[1721083079208,0.30051831,3471.2,3470.7,2.88122]
[1721083079407,0.55,3471.1,3470.7,2.88122]
[1721083079743,0.03482342,3471.0,3470.7,2.88122]
[1721083079918,0.03482342,3471.0,3470.2,7.1001942]
[1721083079919,0.03482342,3471.0,3470.8,2.88117]
[1721083081527,0.03482342,3471.0,3470.2,7.1001942]
[1721083081528,0.03482342,3471.0,3470.7,2.88125]
[1721083081723,0.03482342,3471.0,3470.6,2.88127]
[1721083082334,0.55,3471.1,3470.5,2.88142]
[1721083082536,0.55,3471.1,3470.6,2.88134]
[1721083082842,0.55,3471.1,3470.4,2.88145]
[1721083083135,0.55,3471.1,3470.9,2.88107]
[1721083083523,0.30051831,3471.2,3471.0,2.88101]
[1721083083753,0.30051831,3471.2,3471.0,2.88097]
[1721083084044,0.60194276,3471.2,3471.0,2.88097]
[1721083084198,0.60194276,3471.2,3470.2,7.1001942]
[1721083084401,0.60194276,3471.2,3470.2,8.11021362]
[1721083084644,0.60194276,3471.2,3470.6,2.88126]
[1721083084797,0.60194276,3471.2,3470.5,2.88142]
[1721083085444,0.55,3471.1,3470.6,2.88133]
[1721083086005,0.55,3471.1,3470.4,2.88151]
[1721083086401,0.55,3471.1,3470.2,7.1001942]
[1721083086781,2.4211,3470.9,3469.7,2.88207]
[1721083086920,2.4211,3470.7,3469.6,7.1001942]
[1721083087243,2.4211,3470.6,3469.6,7.1001942]
[1721083087446,0.55,3470.5,3469.6,9.9823542]
[1721083087608,0.55,3470.5,3469.9,2.88186]
[1721083087609,0.58454841,3470.5,3469.9,2.88186]
[1721083089631,0.30046022,3470.4,3469.9,2.88186]
[1721083089837,0.55,3470.3,3469.9,2.88186]
[1721083090034,0.97011861,3470.3,3469.6,9.9823542]
[1721083090425,0.93561086,3470.3,3469.6,9.9823542]
[1721083090748,0.55,3470.3,3469.7,2.88208]
[1721083090958,0.55,3470.3,3469.8,2.88193]
[1721083091261,0.55,3470.3,3469.6,7.1001942]
[1721083091628,2.4211,3470.2,3469.6,7.1001942]
[1721083091830,0.55,3470.1,3469.5,2.88225]
[1721083092027,0.55,3470.1,3469.4,2.88233]
[1721083092256,0.03444676,3470.0,3469.1,2.88258]
[1721083092461,0.03444676,3470.0,3469.6,2.88217]
[1721083092760,0.55,3470.1,3469.4,2.88231]
[1721083093074,0.55,3470.1,3469.6,2.88215]
[1721083093235,0.03444676,3470.0,3469.6,2.88215]
[1721083093431,0.03444676,3470.0,3469.8,2.88193]
[1721083093639,0.55,3470.1,3469.8,2.88193]
[1721083093871,0.03430753,3469.9,3469.8,2.88193]
[1721083094160,0.55,3470.1,3469.8,2.88193]
[1721083094968,0.55,3470.1,3469.6,2.88212]
[1721083095176,0.87715602,3470.1,3469.4,2.88228]
[1721083095465,0.87715602,3470.1,3469.1,2.88258]
[1721083096270,0.87715602,3470.1,3468.8,7.1001942]
[1721083096271,3.039,3469.9,3468.8,7.1001942]
[1721083096569,3.039,3469.9,3468.4,32.3]
[1721083096570,3.00544728,3469.8,3468.6,2.88297]
[1721083096772,0.60444473,3469.7,3468.7,2.88291]
[1721083097061,2.4211,3469.5,3468.3,2.88323]
[1721083097271,2.4211,3469.5,3468.4,2.88315]
[1721083097431,0.58423812,3469.4,3468.4,2.88315]
[1721083097744,0.58423812,3469.4,3468.7,2.88287]
[1721083097951,0.58423812,3469.4,3468.5,2.88307]
[1721083098140,1.48867193,3469.4,3468.6,2.883]
[1721083098339,1.48867193,3469.4,3468.4,2.88312]
[1721083098550,1.48867193,3469.4,3468.7,2.8829]
[1721083098747,0.58423812,3469.4,3468.7,2.8829]
[1721083099071,0.58423812,3469.4,3468.9,2.88274]
[1721083099273,0.30157015,3469.3,3469.0,2.88267]
[1721083099430,0.55,3469.2,3469.0,2.88267]
[1721083099630,0.58381709,3469.2,3469.1,2.88259]
[1721083099864,0.88388912,3469.2,3469.1,3.459116]
[1721083100067,0.88388912,3469.2,3468.5,2.88303]
[1721083100265,0.88388912,3469.2,3469.1,2.88259]
[1721083100478,0.85007203,3469.2,3469.1,2.88259]
[1721083101646,0.85007203,3469.2,3469.1,5.76518]
[1721083104470,0.85007203,3469.2,3469.1,2.88259]
[1721083104873,0.85007203,3469.2,3469.1,5.76518]
[1721083105180,0.85007203,3469.2,3469.1,2.88259]
[1721083105986,2.3534,3469.1,3468.2,2.88333]
[1721083106197,2.3534,3469.1,3468.5,2.88308]
[1721083106349,0.55,3469.0,3468.5,2.88308]
[1721083106546,0.55,3469.0,3468.6,2.88292]
[1721083106994,0.55,3469.0,3468.5,2.88305]
[1721083108372,0.55,3469.0,3468.6,2.88296]
[1721083108704,0.55,3469.0,3468.7,2.88289]
[1721083108883,0.55,3469.0,3468.8,2.88279]
[1721083109207,0.03328636,3468.9,3468.8,2.88278]
[1721083109586,0.03328636,3468.9,3468.0,19.93]
[1721083109767,0.03328636,3468.9,3468.7,2.88286]
[1721083110093,0.55,3469.0,3468.8,2.88283]
[1721083110293,0.29985755,3468.9,3468.8,2.88283]
[1721083110504,0.88313295,3468.9,3468.8,2.88283]
[1721083110915,0.88313295,3468.9,3468.4,2.88314]
[1721083111197,0.55,3468.8,3468.6,2.88295]
[1721083111578,0.03323469,3468.7,3468.6,2.88295]
[1721083111979,0.55,3468.8,3468.6,2.88295]
[1721083112181,0.03323469,3468.7,3468.6,2.88295]
[1721083112507,0.55,3468.8,3468.7,5.76584]
[1721083112670,0.58325659,3468.8,3468.7,5.76584]
[1721083113196,0.58325659,3468.8,3468.5,2.88305]
[1721083113819,0.30157015,3469.3,3468.2,2.2794]
[1721083114109,2.3534,3470.4,3470.0,2.88183]
[1721083114519,0.30149554,3470.8,3470.0,2.88183]
[1721083114715,0.29949842,3470.3,3470.0,2.88183]
[1721083114912,0.30149554,3470.8,3470.0,2.88183]
[1721083115117,0.29950108,3470.2,3469.6,2.88211]
[1721083115341,0.29950108,3470.2,3469.7,2.88208]
[1721083115557,0.30149554,3470.8,3469.7,2.88208]
[1721083115846,0.29952547,3470.1,3469.7,2.88208]
[1721083116042,0.56938955,3470.7,3469.7,2.88208]
[1721083116252,0.29953062,3470.0,3469.9,2.88192]
[1721083116401,0.55,3470.0,3469.9,2.88192]
[1721083116807,0.84953248,3470.0,3469.9,2.88192]
[1721083117948,0.29953248,3470.0,3469.9,6.340233]
[1721083119777,0.29953248,3470.0,3469.9,9.222153]
[1721083119987,0.29953248,3470.0,3469.9,12.222153]
[1721083121252,0.29953248,3470.0,3469.9,15.104073]
[1721083126638,1e-08,3470.0,3469.9,15.104073]
[1721083126952,0.30144558,3471.2,3471.1,2.88093]
[1721083127155,0.30144558,3471.2,3471.1,5.76186]
[1721083127156,0.85144558,3471.2,3471.1,5.76186]
[1721083127361,0.30144558,3471.2,3471.1,5.76186]
[1721083127640,0.29991065,3471.2,3471.1,6.338046]
[1721083127943,0.29991065,3471.2,3471.1,9.218976]
[1721083128539,0.29991065,3471.2,3471.1,12.099906]
[1721083129087,0.29991065,3471.2,3471.1,15.099906]
[1721083129372,0.29991065,3471.2,3471.1,20.364736]
[1721083129974,0.005,3472.0,3471.5,14.40295]
[1721083130178,0.005,3472.0,3471.5,18.843245]
[1721083130389,0.005,3472.0,3471.9,11.52104]
[1721083130596,0.005,3472.0,3471.9,16.90494]
[1721083130753,0.1232938,3473.0,3471.9,16.90494]
[1721083130754,0.1232938,3473.0,3472.9,13.90162]
[1721083130954,0.90242025,3475.7,3473.5,3.039]
[1721083131160,4.90414793,3476.1,3473.5,3.039]
[1721083131161,0.23786373,3475.6,3474.8,2.87779]
[1721083131336,5.4456,3475.5,3474.3,2.87822]
[1721083131660,2.4066,3475.4,3473.9,2.8786]
[1721083131862,2.939,3475.3,3473.9,2.8786]
[1721083132067,2.4066,3475.4,3474.3,2.87827]
[1721083132261,0.29989427,3475.3,3473.5,7.1001942]
[1721083132473,0.29989427,3475.3,3474.9,2.87771]
[1721083132781,0.29989427,3475.3,3474.5,2.8781]
[1721083133089,6.622,3475.1,3472.9,2.3839]
[1721083133273,2.4066,3475.0,3473.0,3.0]
[1721083133471,2.4066,3475.0,3474.6,2.87802]
[1721083133680,0.29989427,3475.3,3475.0,2.87768]
[1721083133980,0.29989427,3475.3,3474.8,2.87779]
[1721083134189,0.29989427,3475.3,3473.9,2.87853]
[1721083134190,0.29989427,3475.3,3475.1,2.87753]
[1721083134386,0.29989427,3475.3,3475.0,2.87762]
[1721083134546,0.29989427,3475.3,3474.4,2.87818]
[1721083134743,2.4066,3475.1,3474.2,2.87835]
[1721083134948,0.62894943,3475.0,3474.2,2.87835]
[1721083135747,0.55,3474.9,3474.2,2.87835]
[1721083136144,0.55,3474.9,3473.5,9.9791242]
[1721083136394,0.55,3474.9,3473.8,2.87861]
[1721083136950,0.55,3474.9,3474.1,2.87836]
[1721083137208,0.65855494,3474.8,3474.2,2.87835]
[1721083137489,0.55,3474.7,3474.6,2.87802]
[1721083137687,0.55,3474.7,3474.4,2.87815]
[1721083138004,0.55,3474.7,3473.6,2.87883]
[1721083138005,0.55,3474.7,3473.9,2.87853]
[1721083138284,2.4062,3474.6,3473.9,2.87853]
[1721083138494,0.84562,3474.5,3473.9,2.87853]
[1721083138783,0.84562,3474.5,3473.8,2.87866]
[1721083139150,0.84562,3474.5,3473.5,7.1001942]
[1721083139346,0.84562,3474.5,3473.1,3.0]
[1721083139551,0.84562,3474.5,3473.3,3.0]
[1721083139752,0.325182,3474.4,3473.7,2.8787]
[1721083139960,0.55,3474.3,3473.4,2.87897]
[1721083140165,0.55,3474.3,3473.3,5.293]
[1721083140166,0.55,3474.3,3473.5,2.87885]
[1721083140518,0.55,3474.3,3472.9,9.9796242]
[1721083140519,4.133,3474.3,3472.9,9.9796242]
[1721083140655,4.133,3474.3,3472.6,0.55]
[1721083140656,3.583,3473.6,3472.5,12.37]
[1721083140866,2.7645,3473.5,3472.0,22.81017]
[1721083141095,3.3145,3473.5,3472.2,2.88]
[1721083141799,5.4145,3473.0,3471.9,7.1001942]
[1721083141961,5.4145,3473.0,3471.4,15.25061]
[1721083141962,3.583,3472.6,3471.4,19.4701942]
[1721083142163,3.583,3472.6,3471.3,2.88072]
[1721083142399,3.583,3472.6,3471.4,2.88067]
[1721083142400,4.2122,3472.5,3471.4,2.88067]
[1721083142588,4.51198854,3472.5,3471.3,2.88073]
[1721083142959,5.4145,3472.4,3471.1,2.88093]
[1721083143174,3.55,3472.3,3471.2,2.88084]
[1721083143399,3.55,3472.3,3471.5,2.88059]
[1721083143561,0.55,3472.3,3471.6,3.17433015]
[1721083143767,0.55,3472.3,3471.8,2.88032]
[1721083144181,0.55,3472.3,3471.9,2.88025]
[1721083144377,0.55,3472.3,3472.1,2.88008]
[1721083144575,0.55,3472.3,3471.6,0.29382015]
[1721083144576,0.29978854,3472.5,3472.2,2.87993]
[1721083144775,0.29978854,3472.5,3472.0,2.88015]
[1721083144981,0.29978854,3472.5,3471.8,2.88034]
[1721083145364,0.29978854,3472.5,3471.9,2.88024]
[1721083146274,0.29978854,3472.5,3471.0,3.0]
[1721083146275,0.55,3472.4,3471.0,3.0]
[1721083146482,0.55,3472.4,3471.7,2.88043]
[1721083146814,0.55,3472.4,3471.2,0.05760224]
[1721083146968,0.55,3472.4,3472.1,2.88009]
[1721083147165,0.55,3472.4,3471.4,2.8806]
[1721083147364,0.55,3472.4,3471.5,0.28806]
[1721083147566,0.55,3472.4,3472.1,2.88005]
[1721083147802,0.55,3472.4,3471.9,2.88026]
[1721083148001,0.30132559,3472.3,3471.9,2.88026]
[1721083148202,0.55,3472.2,3472.1,2.8801]
[1721083149406,0.55,3472.2,3472.1,3.44527844]
[1721083151007,0.29978854,3472.5,3472.4,8.63955]
[1721083151214,0.29978854,3472.5,3472.4,8.7597]
[1721083152065,0.29978854,3472.5,3472.4,11.63955]
[1721083152271,0.30127041,3473.5,3473.3,2.87905]
[1721083152608,2.2743,3475.1,3473.9,2.87852]
[1721083152908,0.30122091,3474.3,3473.9,2.87852]
[1721083153209,3.039,3474.9,3473.5,2.87889]
[1721083153383,0.30122933,3474.3,3473.9,2.8786]
[1721083153578,0.29943446,3475.0,3473.7,2.87872]
[1721083153781,0.30122365,3474.3,3473.8,2.87866]
[1721083154183,0.61567345,3474.9,3473.8,2.87866]
[1721083154368,0.30122518,3474.3,3473.9,2.87857]
[1721083154572,0.61567345,3474.9,3473.9,2.87857]
[1721083154764,0.61567345,3474.9,3473.9,2.8786]
[1721083154970,0.30121791,3474.3,3474.1,2.87844]
[1721083155190,0.29943446,3475.0,3474.0,2.87852]
[1721083155614,0.29943446,3475.0,3474.1,2.87843]
[1721083156021,0.29943446,3475.0,3473.7,2.87871]
[1721083156237,0.29943446,3475.0,3473.7,2.87875]
[1721083156395,1.11127345,3474.9,3473.7,2.87875]
[1721083156600,1.11127345,3474.9,3473.8,2.87867]
[1721083156906,1.11127345,3474.9,3473.4,3.0]
[1721083157113,1.11127345,3474.9,3473.3,7.1001942]
[1721083157322,4.11127345,3474.9,3473.6,2.87884]
[1721083157484,4.11127345,3474.9,3473.4,2.87899]
[1721083157485,0.97240079,3474.8,3473.4,2.87899]
[1721083157685,0.55,3474.7,3473.4,2.87899]
[1721083157923,0.55,3474.7,3473.5,2.87893]
[1721083158127,0.55,3474.7,3473.4,2.87902]
[1721083158313,3.589,3474.7,3473.0,2.87934]
[1721083158621,3.039,3474.5,3472.9,12.37]
[1721083158805,3.039,3474.5,3473.1,2.87925]
[1721083159011,3.039,3474.3,3472.9,12.37]
[1721083159207,8.8633,3474.2,3472.9,12.37]
[1721083159430,5.3133,3474.2,3472.9,2.87943]
[1721083159627,1.43633,3474.1,3472.9,2.87943]
[1721083160121,1.43633,3474.1,3473.0,2.87934]
[1721083161340,1.43633,3474.1,3472.8,7.1001942]
[1721083161629,1.43633,3474.1,3472.3,9.9800642]
[1721083161630,3.039,3473.9,3472.3,9.9800642]
[1721083161940,3.039,3473.7,3472.3,7.1001942]
[1721083162289,3.039,3473.5,3472.3,7.1001942]
[1721083162484,0.55,3473.4,3472.2,2.87999]
[1721083162686,0.6589,3473.3,3472.3,2.87992]
[1721083162931,0.55,3473.4,3472.7,2.87954]
[1721083162932,0.55,3473.2,3472.7,2.87954]
[1721083163090,0.55,3473.2,3472.8,2.87951]
[1721083163438,0.29949008,3473.1,3472.6,2.87967]
[1721083163623,0.29949008,3473.1,3472.8,2.87945]
[1721083163790,0.29949008,3473.1,3472.6,2.87967]
[1721083163791,0.55,3473.0,3472.6,2.87967]
[1721083164212,0.55,3473.0,3472.4,2.87982]
[1721083164576,0.55,3473.0,3472.4,0.287982]
[1721083164830,0.55,3473.0,3472.4,2.87978]
[1721083165032,0.55,3473.0,3472.5,2.87975]
[1721083165336,0.55,3473.0,3472.3,2.87988]
[1721083166002,0.55,3473.0,3472.2,2.87994]
[1721083166191,0.55,3473.0,3472.4,2.87982]
[1721083166391,0.55,3473.0,3472.2,2.87994]
[1721083166831,2.4,3472.9,3472.2,2.87994]
[1721083167015,0.55,3472.8,3472.0,2.88016]
[1721083167538,0.55,3472.8,3472.2,2.88]
[1721083168033,0.87494901,3472.8,3471.7,2.88043]
[1721083168187,0.87494901,3472.8,3471.9,2.8802]
[1721083168931,0.87494901,3472.8,3471.7,2.88043]
[1721083169420,0.87494901,3472.8,3471.8,2.8454477]
[1721083169643,0.87494901,3472.8,3471.6,2.88051]
[1721083169803,0.87494901,3472.8,3472.1,2.88007]
[1721083170388,0.87494901,3472.8,3472.0,2.93775802]
[1721083170588,2.4,3472.9,3472.7,2.87959]
[1721083170788,0.29949008,3473.1,3472.8,2.87947]
[1721083171025,0.29949008,3473.1,3473.0,2.87935]
[1721083172337,0.29949008,3473.1,3472.6,2.87966]
[1721083172538,0.29949008,3473.1,3472.7,2.87959]
[1721083172930,0.55,3473.0,3472.9,2.87938]
[1721083173538,0.29949008,3473.1,3473.0,5.7587]
[1721083174775,0.29949008,3473.1,3473.0,2.87935]
[1721083175078,0.84949008,3473.1,3473.0,5.7587]
[1721083175230,0.84949008,3473.1,3473.0,6.33457]
[1721083175625,0.84949008,3473.1,3473.0,3.45522]
[1721083176329,0.84949008,3473.1,3473.0,6.33457]
[1721083177272,0.29949008,3473.1,3473.0,6.33457]
[1721083178572,0.84949008,3473.1,3473.0,6.33457]
[1721083179333,0.84949008,3473.1,3473.0,2.87935]
[1721083180081,0.84949008,3473.1,3472.9,2.87942]
[1721083180238,0.55,3473.0,3472.7,2.8796]
[1721083180848,0.29949008,3473.1,3473.0,5.7587]
[1721083182343,0.84949008,3473.1,3473.0,5.7587]
[1721083182836,0.84949008,3473.1,3473.0,2.87935]
[1721083183038,0.84949008,3473.1,3472.4,2.87979]
[1721083183295,0.55,3473.0,3472.6,2.87962]
[1721083183450,0.55,3473.0,3472.7,2.87959]
[1721083183634,0.55,3473.0,3472.9,2.87943]
[1721083183835,0.29949008,3473.1,3472.9,0.575902]
[1721083184073,0.29949008,3473.1,3473.0,2.87935]
[1721083184873,0.29949008,3473.1,3473.0,5.7587]
[1721083185285,0.29949008,3473.1,3473.0,2.87935]
[1721083185868,0.29949008,3473.1,3473.0,5.7587]
[1721083186050,0.84949008,3473.1,3473.0,5.7587]
[1721083186239,0.84949008,3473.1,3472.8,2.8795]
[1721083186440,0.84949008,3473.1,3472.9,2.87943]
[1721083186441,0.55,3473.0,3472.9,2.87943]
[1721083188293,0.29949008,3473.1,3472.2,3.0]
[1721083188294,0.30127137,3473.5,3472.2,3.0]
[1721083188586,0.30127137,3473.5,3473.3,2.87909]
[1721083188952,0.30127137,3473.5,3473.4,5.75804]
[1721083189887,0.30127137,3473.5,3473.4,6.333844]
[1721083190245,0.30127137,3473.5,3473.4,9.212864]
[1721083190693,2.479,3474.6,3473.4,9.212864]
[1721083190850,2.479,3474.6,3473.4,3.454824]
[1721083191048,2.479,3474.6,3474.0,2.8785]
[1721083191374,0.30120135,3474.5,3474.0,2.8785]
[1721083191755,0.30120135,3474.5,3474.4,5.75638]
[1721083194488,0.85120135,3474.5,3474.4,5.75638]
[1721083195186,0.85120135,3474.5,3474.3,2.87823]
[1721083195395,0.55,3474.4,3474.3,2.87823]
[1721083196601,0.55,3474.4,3474.0,0.575704]
[1721083196756,0.55,3474.4,3474.1,2.87842]
[1721083196953,0.55,3474.4,3473.9,2.87853]
[1721083197161,2.357,3474.3,3473.8,2.87867]
[1721083197456,0.55,3474.2,3473.8,2.87867]
[1721083197697,0.55,3474.2,3474.1,2.87844]
[1721083198057,0.55,3474.4,3474.1,2.87844]
[1721083198296,0.30100336,3474.2,3474.1,2.87844]
[1721083198468,0.85100336,3474.2,3474.1,2.87844]
[1721083199174,0.85100336,3474.2,3474.1,6.33258]
[1721083199495,0.30100336,3474.2,3474.1,6.33258]
[1721083199708,0.30100336,3474.2,3474.1,9.21102]
[1721083200375,1e-08,3474.2,3474.1,6.33258]
[1721083200573,0.30120135,3474.5,3474.4,5.75638]
[1721083200888,0.30120135,3474.5,3474.4,6.965257]
[1721083201095,0.6021431,3474.5,3474.4,6.965257]
[1721083202116,1.1521431,3474.5,3474.4,5.75638]
[1721083202493,1.1521431,3474.5,3474.4,2.87819]
[1721083202917,1.1521431,3474.5,3474.4,5.75638]
[1721083203434,1.1521431,3474.5,3474.4,2.87819]
[1721083203581,1.1521431,3474.5,3474.4,5.75638]
[1721083204273,1.1521431,3474.5,3474.4,6.332018]
[1721083205808,1.1521431,3474.5,3474.4,9.210208]
[1721083206890,0.6021431,3474.5,3474.4,12.210208]
[1721083207316,0.33991643,3476.2,3476.1,2.87678]
[1721083207614,0.33991643,3476.2,3476.1,5.75356]
[1721083207912,0.64073711,3476.2,3474.9,8.35764]
[1721083208280,0.33991643,3476.2,3476.1,5.75356]
[1721083208517,0.33991643,3476.2,3476.1,2.87678]
[1721083208715,0.33991643,3476.2,3476.1,5.75356]
[1721083208916,0.33991643,3476.2,3476.1,2.87678]
[1721083209300,0.33991643,3476.2,3476.1,5.75356]
[1721083209510,0.33991643,3476.2,3476.1,9.205709]